[Event "Live Chess"]
[Site "Chess.com"]
[Date "2023.05.20"]
[Round "-"]
[White "Rusty_Bridges"]
[Black "Argrath"]
[Result "1/2-1/2"]
[WhiteElo "1423"]
[BlackElo "1428"]
[TimeControl "300"]
[EndTime "9:12:05 PDT"]
[Termination "Game drawn by repetition"]

1. e4 {[%clk 0:04:58.2]} 1... c6 {[%clk 0:04:56.1]} 2. Nf3 {[%clk 0:04:53.1]}
2... d5 {[%clk 0:04:54.1]} 3. exd5 {[%clk 0:04:50.6]} 3... cxd5 {[%clk
0:04:52.6]} 4. d4 {[%clk 0:04:47.7]} 4... Bg4 {[%clk 0:04:47.1]} 5. Bd3 {[%clk
0:04:40]} 5... Nc6 {[%clk 0:04:44.5]} 6. c3 {[%clk 0:04:38.3]} 6... Nf6 {[%clk
0:04:42.4]} 7. Bf4 {[%clk 0:04:28.7]} 7... e6 {[%clk 0:04:39]} 8. Nbd2 {[%clk
0:04:26.2]} 8... Bd6 {[%clk 0:04:33.9]} 9. Bxd6 {[%clk 0:04:24]} 9... Qxd6
{[%clk 0:04:32.9]} 10. h3 {[%clk 0:04:23]} 10... Bh5 {[%clk 0:04:31.5]} 11. Qc2
{[%clk 0:04:19.8]} 11... Bg6 {[%clk 0:04:28.6]} 12. O-O {[%clk 0:04:10.6]} 12...
O-O {[%clk 0:04:27.3]} 13. Rae1 {[%clk 0:04:01.4]} 13... a6 {[%clk 0:04:24]} 14.
Ne5 {[%clk 0:03:59]} 14... Bxd3 {[%clk 0:04:19.1]} 15. Qxd3 {[%clk 0:03:53.2]}
15... b5 {[%clk 0:04:13.2]} 16. Re3 {[%clk 0:03:34.8]} 16... Na5 {[%clk
0:04:09.3]} 17. b3 {[%clk 0:03:32]} 17... Rac8 {[%clk 0:04:07.3]} 18. Qe2 {[%clk
0:03:23]} 18... Qa3 {[%clk 0:03:58.8]} 19. Ndf3 {[%clk 0:03:08.2]} 19... Ne4
{[%clk 0:03:51.3]} 20. Rxe4 {[%clk 0:02:43.9]} 20... dxe4 {[%clk 0:03:49.3]} 21.
Nh2 {[%clk 0:02:29]} 21... Rxc3 {[%clk 0:03:46.2]} 22. Nhg4 {[%clk 0:02:08.1]}
22... Rfc8 {[%clk 0:03:43.2]} 23. Qxe4 {[%clk 0:02:02.1]} 23... Rc1 {[%clk
0:03:34.2]} 24. Rxc1 {[%clk 0:01:53.6]} 24... Qxc1+ {[%clk 0:03:32.7]} 25. Kh2
{[%clk 0:01:53.1]} 25... Qc2 {[%clk 0:03:27.6]} 26. Qf4 {[%clk 0:01:47]} 26...
Qc7 {[%clk 0:03:20.5]} 27. h4 {[%clk 0:01:21.8]} 27... f6 {[%clk 0:03:09.2]} 28.
Nxf6+ {[%clk 0:01:16.9]} 28... gxf6 {[%clk 0:03:06.8]} 29. Qxf6 {[%clk 0:01:15]}
29... Re8 {[%clk 0:02:55.4]} 30. g3 {[%clk 0:01:06.1]} 30... Nc6 {[%clk
0:02:50.7]} 31. Ng4 {[%clk 0:01:01.4]} 31... Qg7 {[%clk 0:02:32.8]} 32. Nh6+
{[%clk 0:00:51]} 32... Kh8 {[%clk 0:02:31.3]} 33. Nf7+ {[%clk 0:00:44.9]} 33...
Kg8 {[%clk 0:02:29.6]} 34. Nh6+ {[%clk 0:00:44.1]} 34... Kh8 {[%clk 0:02:27]}
35. Nf7+ {[%clk 0:00:43.7]} 35... Kg8 {[%clk 0:02:26.2]} 36. Nh6+ {[%clk
0:00:43.2]} 1/2-1/2

[Event "Live Chess"]
[Site "Chess.com"]
[Date "2023.05.20"]
[Round "-"]
[White "VIDYUTGANESH"]
[Black "Andysav3"]
[Result "0-1"]
[WhiteElo "1673"]
[BlackElo "1688"]
[TimeControl "300"]
[EndTime "9:12:13 PDT"]
[Termination "Andysav3 won by resignation"]

1. e4 {[%clk 0:04:59.1]} 1... Nf6 {[%clk 0:04:58]} 2. e5 {[%clk 0:04:57.8]} 2...
Nd5 {[%clk 0:04:57]} 3. f4 {[%clk 0:04:57.2]} 3... d6 {[%clk 0:04:51.4]} 4. exd6
{[%clk 0:04:55]} 4... cxd6 {[%clk 0:04:48.6]} 5. d4 {[%clk 0:04:53.6]} 5... g6
{[%clk 0:04:37.7]} 6. Nf3 {[%clk 0:04:52.9]} 6... Bg7 {[%clk 0:04:35.7]} 7. Bb5+
{[%clk 0:04:52.3]} 7... Bd7 {[%clk 0:04:21.8]} 8. Bxd7+ {[%clk 0:04:50.2]} 8...
Qxd7 {[%clk 0:04:11.1]} 9. c4 {[%clk 0:04:47.4]} 9... Nf6 {[%clk 0:04:09.8]} 10.
O-O {[%clk 0:04:43.7]} 10... O-O {[%clk 0:04:08.2]} 11. Nc3 {[%clk 0:04:41.6]}
11... Nc6 {[%clk 0:03:52]} 12. h3 {[%clk 0:04:40.6]} 12... a6 {[%clk 0:03:46.9]}
13. a3 {[%clk 0:04:40.1]} 13... Na5 {[%clk 0:03:26.6]} 14. Qe2 {[%clk
0:04:34.3]} 14... Rac8 {[%clk 0:03:23]} 15. Nd2 {[%clk 0:04:30.8]} 15... b5
{[%clk 0:02:59.2]} 16. cxb5 {[%clk 0:04:29]} 16... axb5 {[%clk 0:02:56.8]} 17.
Nxb5 {[%clk 0:04:27.7]} 17... Qb7 {[%clk 0:02:30.7]} 18. Nc3 {[%clk 0:04:26.9]}
18... Nb3 {[%clk 0:02:25.6]} 19. Nxb3 {[%clk 0:04:25.2]} 19... Qxb3 {[%clk
0:02:23.9]} 20. Be3 {[%clk 0:04:19.5]} 20... Rb8 {[%clk 0:02:13.9]} 21. Rab1
{[%clk 0:04:18.4]} 21... e6 {[%clk 0:02:04.2]} 22. g4 {[%clk 0:04:17.1]} 22...
d5 {[%clk 0:02:01.8]} 23. f5 {[%clk 0:04:10.2]} 23... Nd7 {[%clk 0:01:56.4]} 24.
Qd2 {[%clk 0:03:56.3]} 24... Nb6 {[%clk 0:01:51.2]} 25. Ne2 {[%clk 0:03:53.3]}
25... Nc4 {[%clk 0:01:48.1]} 26. Qc3 {[%clk 0:03:51.6]} 26... Qxc3 {[%clk
0:01:45.2]} 27. bxc3 {[%clk 0:03:49.6]} 27... Nxe3 {[%clk 0:01:43]} 28. Rxb8
{[%clk 0:03:46.2]} 28... Rxb8 {[%clk 0:01:40.8]} 29. Rf2 {[%clk 0:03:45.7]}
29... Rb3 {[%clk 0:01:32.7]} 30. Rf3 {[%clk 0:03:39.5]} 30... Nc4 {[%clk
0:01:28.6]} 31. Rd3 {[%clk 0:03:34.8]} 31... Rxa3 {[%clk 0:01:26.7]} 32. Kf2
{[%clk 0:03:32.3]} 32... gxf5 {[%clk 0:01:24.8]} 33. gxf5 {[%clk 0:03:30.9]}
33... h5 {[%clk 0:01:23.5]} 34. fxe6 {[%clk 0:03:29.5]} 34... fxe6 {[%clk
0:01:21.7]} 35. Nf4 {[%clk 0:03:29.1]} 35... Kf7 {[%clk 0:01:16.2]} 36. Nxh5
{[%clk 0:03:27.5]} 36... Bh8 {[%clk 0:01:12.8]} 37. Rf3+ {[%clk 0:03:24.1]}
37... Ke7 {[%clk 0:01:11.3]} 38. Rg3 {[%clk 0:03:22.6]} 38... Rxc3 {[%clk
0:01:08.9]} 39. Rg8 {[%clk 0:03:17.3]} 39... Bxd4+ {[%clk 0:01:07.3]} 40. Ke2
{[%clk 0:03:17.1]} 40... e5 {[%clk 0:01:03.9]} 41. Ng7 {[%clk 0:03:13.1]} 41...
Rc2+ {[%clk 0:00:58]} 42. Kd1 {[%clk 0:03:11.2]} 42... Rd2+ {[%clk 0:00:55.7]}
43. Ke1 {[%clk 0:03:09.5]} 43... Rh2 {[%clk 0:00:49.2]} 44. Nf5+ {[%clk
0:03:06.6]} 44... Ke6 {[%clk 0:00:48.3]} 45. Ng3 {[%clk 0:03:05.3]} 45... Bf2+
{[%clk 0:00:45.3]} 46. Kf1 {[%clk 0:03:02.7]} 46... Bxg3 {[%clk 0:00:44.4]} 47.
Rxg3 {[%clk 0:03:00.8]} 47... e4 {[%clk 0:00:44.1]} 48. Kg1 {[%clk 0:02:56.5]}
48... Rc2 {[%clk 0:00:40]} 49. h4 {[%clk 0:02:56]} 49... d4 {[%clk 0:00:38.1]}
50. Kf1 {[%clk 0:02:55]} 50... e3 {[%clk 0:00:36.8]} 51. Ke1 {[%clk 0:02:53.5]}
51... d3 {[%clk 0:00:35.5]} 52. h5 {[%clk 0:02:48]} 52... d2+ {[%clk 0:00:31.8]}
53. Kd1 {[%clk 0:02:47.1]} 53... Rc1+ {[%clk 0:00:30.6]} 0-1

[Event "Live Chess"]
[Site "Chess.com"]
[Date "2023.05.20"]
[Round "-"]
[White "SaraTang"]
[Black "MJMykh"]
[Result "0-1"]
[WhiteElo "170"]
[BlackElo "952"]
[TimeControl "300"]
[EndTime "9:12:18 PDT"]
[Termination "MJMykh won by checkmate"]

1. e4 {[%clk 0:04:59.2]} 1... e5 {[%clk 0:04:58.8]} 2. Bc4 {[%clk 0:04:57.2]}
2... Nc6 {[%clk 0:04:56.8]} 3. Qf3 {[%clk 0:04:55.1]} 3... Qe7 {[%clk
0:04:55.1]} 4. Nh3 {[%clk 0:04:51.5]} 4... Nd4 {[%clk 0:04:54.3]} 5. Qg3 {[%clk
0:04:47.6]} 5... Nxc2+ {[%clk 0:04:52]} 6. Kd1 {[%clk 0:04:39.2]} 6... Nxa1
{[%clk 0:04:50.6]} 7. Ng5 {[%clk 0:04:35.7]} 7... Nh6 {[%clk 0:04:46.1]} 8. Nxf7
{[%clk 0:04:31.1]} 8... Nxf7 {[%clk 0:04:44.8]} 9. Qf3 {[%clk 0:04:23.8]} 9...
Nd6 {[%clk 0:04:41.5]} 10. Bf7+ {[%clk 0:04:22.3]} 10... Qxf7 {[%clk 0:04:39.9]}
11. Qxf7+ {[%clk 0:04:17.6]} 11... Nxf7 {[%clk 0:04:39.5]} 12. Re1 {[%clk
0:04:13.4]} 12... Bc5 {[%clk 0:04:34.1]} 13. Re2 {[%clk 0:04:07.5]} 13... Nd6
{[%clk 0:04:32.1]} 14. Re3 {[%clk 0:04:05.3]} 14... Bxe3 {[%clk 0:04:30.3]} 15.
dxe3 {[%clk 0:04:03.7]} 15... Nxe4 {[%clk 0:04:26.9]} 16. f3 {[%clk 0:03:59.5]}
16... Nd6 {[%clk 0:04:19.1]} 17. f4 {[%clk 0:03:51.4]} 17... exf4 {[%clk
0:04:17.3]} 18. exf4 {[%clk 0:03:49.4]} 18... O-O {[%clk 0:04:16.9]} 19. g3
{[%clk 0:03:45.1]} 19... Ne4 {[%clk 0:04:15.2]} 20. g4 {[%clk 0:03:43.3]} 20...
Nf2+ {[%clk 0:04:13.4]} 21. Ke1 {[%clk 0:03:39.7]} 21... Nxg4 {[%clk 0:04:12.1]}
22. h3 {[%clk 0:03:37.8]} 22... Nf6 {[%clk 0:04:09.9]} 23. Nc3 {[%clk
0:03:33.9]} 23... Nc2+ {[%clk 0:04:08.5]} 24. Kd2 {[%clk 0:03:31.6]} 24... Nb4
{[%clk 0:04:07.3]} 25. a3 {[%clk 0:03:29.8]} 25... Nc6 {[%clk 0:04:06]} 26. b4
{[%clk 0:03:27.7]} 26... a6 {[%clk 0:04:04]} 27. a4 {[%clk 0:03:26.2]} 27...
Nxb4 {[%clk 0:04:02.6]} 28. Ba3 {[%clk 0:03:23.2]} 28... c5 {[%clk 0:04:00.6]}
29. a5 {[%clk 0:03:15]} 29... d6 {[%clk 0:03:58.8]} 30. Ke3 {[%clk 0:03:10.7]}
30... Nbd5+ {[%clk 0:03:57.7]} 31. Nxd5 {[%clk 0:03:06.5]} 31... Nxd5+ {[%clk
0:03:56.8]} 32. Kd3 {[%clk 0:03:04.7]} 32... Nxf4+ {[%clk 0:03:55]} 33. Ke4
{[%clk 0:03:00]} 33... Nxh3 {[%clk 0:03:54]} 34. Bxc5 {[%clk 0:02:56.6]} 34...
dxc5 {[%clk 0:03:53]} 35. Kd3 {[%clk 0:02:52.4]} 35... g5 {[%clk 0:03:52.2]} 36.
Kc4 {[%clk 0:02:51.1]} 36... g4 {[%clk 0:03:51.4]} 37. Kxc5 {[%clk 0:02:50.1]}
37... g3 {[%clk 0:03:51.3]} 38. Kd5 {[%clk 0:02:48.3]} 38... g2 {[%clk 0:03:51]}
39. Kd4 {[%clk 0:02:47.2]} 39... g1=Q+ {[%clk 0:03:50]} 40. Ke4 {[%clk
0:02:45.8]} 40... Re8+ {[%clk 0:03:49.1]} 41. Kf3 {[%clk 0:02:43.3]} 41... Qf1+
{[%clk 0:03:46.9]} 42. Kg3 {[%clk 0:02:42.1]} 42... Re3+ {[%clk 0:03:46.2]} 43.
Kh2 {[%clk 0:02:40.6]} 43... Qf2+ {[%clk 0:03:45]} 44. Kh1 {[%clk 0:02:38.2]}
44... Re1# {[%clk 0:03:44.6]} 0-1

[Event "Live Chess"]
[Site "Chess.com"]
[Date "2023.05.20"]
[Round "-"]
[White "YrrriKharkiv"]
[Black "LiamBellwood"]
[Result "1/2-1/2"]
[WhiteElo "2121"]
[BlackElo "2115"]
[TimeControl "300"]
[EndTime "9:12:27 PDT"]
[Termination "Game drawn by repetition"]

1. d4 {[%clk 0:04:53.1]} 1... e6 {[%clk 0:04:59.9]} 2. Nf3 {[%clk 0:04:52.2]}
2... f5 {[%clk 0:04:58.8]} 3. c4 {[%clk 0:04:51.9]} 3... Nf6 {[%clk 0:04:58.5]}
4. Nc3 {[%clk 0:04:50.8]} 4... Bb4 {[%clk 0:04:58.1]} 5. g3 {[%clk 0:04:49.6]}
5... O-O {[%clk 0:04:56.7]} 6. Bd2 {[%clk 0:04:48.4]} 6... d6 {[%clk 0:04:55.5]}
7. Bg2 {[%clk 0:04:47.6]} 7... Bxc3 {[%clk 0:04:52.1]} 8. Bxc3 {[%clk
0:04:46.2]} 8... Ne4 {[%clk 0:04:52]} 9. O-O {[%clk 0:04:44.3]} 9... Qe8 {[%clk
0:04:46.3]} 10. Qd3 {[%clk 0:04:43.1]} 10... Nd7 {[%clk 0:04:43.7]} 11. Nd2
{[%clk 0:04:42]} 11... Nxc3 {[%clk 0:04:41.5]} 12. Qxc3 {[%clk 0:04:40]} 12...
e5 {[%clk 0:04:37.2]} 13. e3 {[%clk 0:04:30.1]} 13... Nf6 {[%clk 0:04:31.7]} 14.
c5 {[%clk 0:04:25.9]} 14... f4 {[%clk 0:03:56.9]} 15. cxd6 {[%clk 0:04:09.7]}
15... cxd6 {[%clk 0:03:54.2]} 16. dxe5 {[%clk 0:04:08.5]} 16... dxe5 {[%clk
0:03:50.1]} 17. exf4 {[%clk 0:04:07.6]} 17... exf4 {[%clk 0:03:48.5]} 18. Qc4+
{[%clk 0:04:05.4]} 18... Be6 {[%clk 0:03:40.7]} 19. Qxf4 {[%clk 0:04:04.1]}
19... Rd8 {[%clk 0:03:36.1]} 20. Qb4 {[%clk 0:03:50.9]} 20... Bd5 {[%clk
0:03:24.2]} 21. Nf3 {[%clk 0:03:40.3]} 21... Qh5 {[%clk 0:03:01.4]} 22. Nh4
{[%clk 0:03:24.7]} 22... Bxg2 {[%clk 0:02:57.3]} 23. Nxg2 {[%clk 0:03:23.6]}
23... Ng4 {[%clk 0:02:32.1]} 24. h4 {[%clk 0:02:56.9]} 24... Ne5 {[%clk
0:02:30.6]} 25. Qb3+ {[%clk 0:02:32.7]} 25... Kh8 {[%clk 0:02:28.7]} 26. f4
{[%clk 0:02:28]} 26... Ng4 {[%clk 0:02:04.7]} 27. Rad1 {[%clk 0:02:14.5]} 27...
Qc5+ {[%clk 0:02:02.3]} 28. Kh1 {[%clk 0:02:07.9]} 28... Nf2+ {[%clk 0:01:55.8]}
29. Rxf2 {[%clk 0:02:06.2]} 29... Qxf2 {[%clk 0:01:55.7]} 30. Rxd8 {[%clk
0:02:00.2]} 30... Rxd8 {[%clk 0:01:55.6]} 31. Kh2 {[%clk 0:01:59.3]} 31... h6
{[%clk 0:01:29.6]} 32. Qxb7 {[%clk 0:01:52.6]} 32... Rd2 {[%clk 0:01:22.3]} 33.
Qa8+ {[%clk 0:01:51.4]} 33... Kh7 {[%clk 0:01:21.2]} 34. Qe4+ {[%clk 0:01:50.9]}
34... Kg8 {[%clk 0:01:16.9]} 35. Qe6+ {[%clk 0:01:42.4]} 35... Kh7 {[%clk
0:01:16]} 36. Qf5+ {[%clk 0:01:41.3]} 36... Kg8 {[%clk 0:01:14]} 37. Qe6+ {[%clk
0:01:40.6]} 37... Kh7 {[%clk 0:01:09.9]} 38. Qf5+ {[%clk 0:01:39.4]} 38... Kg8
{[%clk 0:01:09.3]} 39. Qe6+ {[%clk 0:01:37.5]} 1/2-1/2

[Event "Live Chess"]
[Site "Chess.com"]
[Date "2023.05.20"]
[Round "-"]
[White "CheckString"]
[Black "sup3rm0nk3y"]
[Result "1-0"]
[WhiteElo "1363"]
[BlackElo "1335"]
[TimeControl "300"]
[EndTime "9:12:32 PDT"]
[Termination "CheckString won by resignation"]

1. e4 {[%clk 0:04:58]} 1... c5 {[%clk 0:04:48.1]} 2. c3 {[%clk 0:04:55.5]} 2...
d5 {[%clk 0:04:46]} 3. exd5 {[%clk 0:04:26.7]} 3... Qxd5 {[%clk 0:04:42.3]} 4.
h3 {[%clk 0:04:12.4]} 4... Nc6 {[%clk 0:04:38.8]} 5. Na3 {[%clk 0:04:05.9]} 5...
Nf6 {[%clk 0:04:32.3]} 6. Bc4 {[%clk 0:03:57.1]} 6... Qd7 {[%clk 0:04:30]} 7.
Nf3 {[%clk 0:03:43]} 7... e6 {[%clk 0:04:26]} 8. O-O {[%clk 0:03:38.6]} 8... Be7
{[%clk 0:04:23.5]} 9. d4 {[%clk 0:03:32.9]} 9... cxd4 {[%clk 0:04:21.8]} 10.
cxd4 {[%clk 0:03:31.7]} 10... O-O {[%clk 0:04:19.2]} 11. Re1 {[%clk 0:03:21.5]}
11... Bxa3 {[%clk 0:04:16.4]} 12. bxa3 {[%clk 0:03:18.2]} 12... a6 {[%clk
0:04:15.4]} 13. a4 {[%clk 0:03:05.8]} 13... Rd8 {[%clk 0:04:03.4]} 14. Bb2
{[%clk 0:02:54.8]} 14... Na5 {[%clk 0:04:00.8]} 15. Bb3 {[%clk 0:02:43]} 15...
b6 {[%clk 0:03:40]} 16. Ne5 {[%clk 0:02:39.5]} 16... Qc7 {[%clk 0:03:31.2]} 17.
Rc1 {[%clk 0:02:26.1]} 17... Qb7 {[%clk 0:03:23.7]} 18. Bc2 {[%clk 0:02:20.6]}
18... Bd7 {[%clk 0:03:20]} 19. Be4 {[%clk 0:02:19]} 19... Bc6 {[%clk 0:03:15.5]}
20. Bxc6 {[%clk 0:02:16]} 20... Nxc6 {[%clk 0:03:14.5]} 21. Nxc6 {[%clk
0:02:14.9]} 21... Rdc8 {[%clk 0:03:10.7]} 22. Ne5 {[%clk 0:02:00.8]} 22... a5
{[%clk 0:02:55.1]} 23. Qd3 {[%clk 0:01:51.2]} 23... Nd5 {[%clk 0:02:46.4]} 24.
Rxc8+ {[%clk 0:01:44.9]} 24... Rxc8 {[%clk 0:02:44.4]} 25. Rc1 {[%clk
0:01:40.8]} 25... Re8 {[%clk 0:02:31.5]} 26. Qb5 {[%clk 0:01:31.4]} 26... Re7
{[%clk 0:02:20.5]} 27. Nc6 {[%clk 0:01:24.6]} 27... Nf4 {[%clk 0:02:17.5]} 28.
Nxe7+ {[%clk 0:01:22.3]} 28... Kf8 {[%clk 0:02:13.2]} 29. f3 {[%clk 0:01:07]}
29... Kxe7 {[%clk 0:01:49.7]} 30. Ba3+ {[%clk 0:01:03.7]} 30... Kf6 {[%clk
0:01:48.1]} 31. Qe5+ {[%clk 0:01:00.9]} 31... Kg6 {[%clk 0:01:46.7]} 32. Qxf4
{[%clk 0:00:58.6]} 32... f5 {[%clk 0:01:45.8]} 33. Qe5 {[%clk 0:00:56.9]} 1-0

[Event "Live Chess"]
[Site "Chess.com"]
[Date "2023.05.20"]
[Round "-"]
[White "Balu13"]
[Black "Jio85"]
[Result "0-1"]
[WhiteElo "816"]
[BlackElo "2039"]
[TimeControl "300"]
[EndTime "9:12:36 PDT"]
[Termination "Jio85 won by resignation"]

1. e4 {[%clk 0:04:55.6]} 1... Nf6 {[%clk 0:04:57.7]} 2. e5 {[%clk 0:04:53.4]}
2... Nd5 {[%clk 0:04:56.5]} 3. c4 {[%clk 0:04:52.6]} 3... Nb6 {[%clk 0:04:55.4]}
4. d4 {[%clk 0:04:51.8]} 4... d6 {[%clk 0:04:55]} 5. Nc3 {[%clk 0:04:45.8]} 5...
dxe5 {[%clk 0:04:53]} 6. dxe5 {[%clk 0:04:44.4]} 6... Qxd1+ {[%clk 0:04:51.8]}
7. Nxd1 {[%clk 0:04:43.4]} 7... Nc6 {[%clk 0:04:51.3]} 8. c5 {[%clk 0:04:39.1]}
8... Nd7 {[%clk 0:04:49]} 9. Bf4 {[%clk 0:04:34.7]} 9... Nxc5 {[%clk 0:04:46.7]}
10. Bb5 {[%clk 0:04:32.9]} 10... Bd7 {[%clk 0:04:45.6]} 11. Nf3 {[%clk
0:04:27.7]} 11... e6 {[%clk 0:04:43.9]} 12. O-O {[%clk 0:04:19.9]} 12... a6
{[%clk 0:04:42.3]} 13. Bxc6 {[%clk 0:04:14.4]} 13... Bxc6 {[%clk 0:04:41.3]} 14.
Rc1 {[%clk 0:04:07]} 14... Nd3 {[%clk 0:04:39.7]} 15. Ne3 {[%clk 0:03:45]} 15...
Nxf4 {[%clk 0:04:35.3]} 16. Nc4 {[%clk 0:03:30]} 16... Ne2+ {[%clk 0:04:32.1]}
0-1

[Event "Live Chess"]
[Site "Chess.com"]
[Date "2023.05.20"]
[Round "-"]
[White "Krishtwist2013gmailc"]
[Black "thrithik"]
[Result "1-0"]
[WhiteElo "1002"]
[BlackElo "593"]
[TimeControl "300"]
[EndTime "9:12:39 PDT"]
[Termination "Krishtwist2013gmailc won by checkmate"]

1. e4 {[%clk 0:04:56.5]} 1... g6 {[%clk 0:04:57.1]} 2. c3 {[%clk 0:04:54.7]}
2... h5 {[%clk 0:04:55.2]} 3. d4 {[%clk 0:04:53.3]} 3... Nf6 {[%clk 0:04:53]} 4.
Be3 {[%clk 0:04:49]} 4... Nxe4 {[%clk 0:04:51.1]} 5. Nf3 {[%clk 0:04:43.9]} 5...
Rg8 {[%clk 0:04:41.1]} 6. Bd3 {[%clk 0:04:42.5]} 6... Nxf2 {[%clk 0:04:34.9]} 7.
Kxf2 {[%clk 0:04:40.9]} 7... Bh6 {[%clk 0:04:31.4]} 8. Bxh6 {[%clk 0:04:38.3]}
8... Rh8 {[%clk 0:04:29]} 9. Bg7 {[%clk 0:04:37]} 9... Rg8 {[%clk 0:04:27.3]}
10. Bh6 {[%clk 0:04:35.9]} 10... g5 {[%clk 0:04:17.4]} 11. Qe1 {[%clk
0:04:32.2]} 11... g4 {[%clk 0:04:15.1]} 12. Ng5 {[%clk 0:04:29.2]} 12... f6
{[%clk 0:04:08.9]} 13. Ne4 {[%clk 0:04:25.4]} 13... f5 {[%clk 0:04:06.1]} 14.
Ng5 {[%clk 0:04:22.7]} 14... Rh8 {[%clk 0:03:58.1]} 15. Bg7 {[%clk 0:04:20.3]}
15... Rh7 {[%clk 0:03:54.9]} 16. Be5 {[%clk 0:04:16.2]} 16... d6 {[%clk
0:03:48.3]} 17. Bf4 {[%clk 0:04:11.7]} 17... e5 {[%clk 0:03:42.6]} 18. dxe5
{[%clk 0:04:09.6]} 18... dxe5 {[%clk 0:03:40.7]} 19. Qxe5+ {[%clk 0:04:07.8]}
19... Re7 {[%clk 0:03:25.7]} 20. Qh8+ {[%clk 0:03:55.6]} 20... Kd7 {[%clk
0:03:23.5]} 21. Bb5+ {[%clk 0:03:54.1]} 21... c6 {[%clk 0:03:21.2]} 22. Rd1#
{[%clk 0:03:50.2]} 1-0

[Event "Live Chess"]
[Site "Chess.com"]
[Date "2023.05.20"]
[Round "-"]
[White "alanmike75"]
[Black "matt1979"]
[Result "1-0"]
[WhiteElo "1501"]
[BlackElo "1484"]
[TimeControl "300"]
[EndTime "9:12:41 PDT"]
[Termination "alanmike75 won by resignation"]

1. e4 {[%clk 0:04:59]} 1... g6 {[%clk 0:04:53.6]} 2. d4 {[%clk 0:04:57]} 2...
Bg7 {[%clk 0:04:51.5]} 3. Be3 {[%clk 0:04:54.7]} 3... d6 {[%clk 0:04:49.7]} 4.
c3 {[%clk 0:04:53.5]} 4... b6 {[%clk 0:04:47.2]} 5. Nd2 {[%clk 0:04:51.9]} 5...
Bb7 {[%clk 0:04:45.8]} 6. Bd3 {[%clk 0:04:50.5]} 6... e6 {[%clk 0:04:43.9]} 7.
f3 {[%clk 0:04:49.1]} 7... Ne7 {[%clk 0:04:42.2]} 8. Ne2 {[%clk 0:04:47.8]} 8...
Nd7 {[%clk 0:04:40]} 9. O-O {[%clk 0:04:46.6]} 9... f5 {[%clk 0:04:33.9]} 10.
Rc1 {[%clk 0:04:43.4]} 10... O-O {[%clk 0:04:26.9]} 11. c4 {[%clk 0:04:35.5]}
11... e5 {[%clk 0:04:18.6]} 12. d5 {[%clk 0:04:31.3]} 12... Nc5 {[%clk
0:04:13.7]} 13. Bb1 {[%clk 0:04:29.9]} 13... Qe8 {[%clk 0:04:02.5]} 14. b4
{[%clk 0:04:27]} 14... Na6 {[%clk 0:03:55.5]} 15. a3 {[%clk 0:04:24.9]} 15... f4
{[%clk 0:03:49.3]} 16. Bf2 {[%clk 0:04:22.8]} 16... Nb8 {[%clk 0:03:47.2]} 17.
c5 {[%clk 0:04:14.5]} 17... bxc5 {[%clk 0:03:42.2]} 18. bxc5 {[%clk 0:04:12.9]}
18... Ba6 {[%clk 0:03:40.2]} 19. Re1 {[%clk 0:04:11.5]} 19... Nd7 {[%clk
0:03:35.7]} 20. Nb3 {[%clk 0:03:52.8]} 20... Rb8 {[%clk 0:03:28]} 21. Na5 {[%clk
0:03:49.6]} 21... Rb5 {[%clk 0:03:14.2]} 22. Nc6 {[%clk 0:03:30.3]} 22... Nxc6
{[%clk 0:03:10.9]} 23. dxc6 {[%clk 0:03:28.3]} 23... Nf6 {[%clk 0:03:08.3]} 24.
cxd6 {[%clk 0:03:24.9]} 24... cxd6 {[%clk 0:03:00.8]} 25. Qxd6 {[%clk
0:03:19.5]} 25... Rb2 {[%clk 0:02:47.7]} 26. Nc3 {[%clk 0:03:03.5]} 26... Qc8
{[%clk 0:02:25.6]} 27. Nd5 {[%clk 0:02:56.7]} 27... Nxd5 {[%clk 0:02:24.1]} 28.
exd5 {[%clk 0:02:49.9]} 28... Rd8 {[%clk 0:02:16.4]} 29. Qc5 {[%clk 0:02:43.3]}
29... Rb5 {[%clk 0:02:13]} 30. Qc4 {[%clk 0:02:36.7]} 30... Rbxd5 {[%clk
0:02:05.6]} 31. Qa2 {[%clk 0:02:35.2]} 31... Kh8 {[%clk 0:01:59.3]} 32. Be4
{[%clk 0:02:33.5]} 32... Rd2 {[%clk 0:01:57]} 33. Qf7 {[%clk 0:02:27.9]} 33...
R2d6 {[%clk 0:01:36]} 34. Qxa7 {[%clk 0:02:24.8]} 34... Bb5 {[%clk 0:01:21.1]}
35. Qc5 {[%clk 0:02:17.1]} 35... Bxc6 {[%clk 0:01:14.3]} 36. Bxc6 {[%clk
0:02:15.1]} 36... Bf8 {[%clk 0:00:58.3]} 37. Be4 {[%clk 0:02:10.3]} 37... Rd1
{[%clk 0:00:53.1]} 38. Qxc8 {[%clk 0:02:05.4]} 38... Rxe1+ {[%clk 0:00:51]} 39.
Bxe1 {[%clk 0:02:02.6]} 39... Bc5+ {[%clk 0:00:48.8]} 40. Rxc5 {[%clk
0:01:58.4]} 1-0

[Event "Live Chess"]
[Site "Chess.com"]
[Date "2023.05.20"]
[Round "-"]
[White "profpirate4"]
[Black "OceanFloater"]
[Result "0-1"]
[WhiteElo "943"]
[BlackElo "970"]
[TimeControl "300"]
[EndTime "9:12:42 PDT"]
[Termination "OceanFloater won by resignation"]

1. d4 {[%clk 0:04:55.1]} 1... c6 {[%clk 0:04:57.7]} 2. c4 {[%clk 0:04:54.1]}
2... d5 {[%clk 0:04:55.7]} 3. Nc3 {[%clk 0:04:53.1]} 3... Bf5 {[%clk 0:04:52.4]}
4. Bg5 {[%clk 0:04:49.5]} 4... h6 {[%clk 0:04:46.8]} 5. Bh4 {[%clk 0:04:48.2]}
5... g5 {[%clk 0:04:45.4]} 6. Bg3 {[%clk 0:04:47]} 6... Nf6 {[%clk 0:04:42.6]}
7. e3 {[%clk 0:04:43.9]} 7... Bg7 {[%clk 0:04:40.6]} 8. cxd5 {[%clk 0:04:39.6]}
8... Nxd5 {[%clk 0:04:35.6]} 9. Bc4 {[%clk 0:04:19.9]} 9... Nxc3 {[%clk
0:04:27.7]} 10. bxc3 {[%clk 0:04:16.1]} 10... O-O {[%clk 0:04:24.2]} 11. Nf3
{[%clk 0:04:12.3]} 11... b5 {[%clk 0:04:15]} 12. Bb3 {[%clk 0:04:11]} 12... Qa5
{[%clk 0:04:08.3]} 13. O-O {[%clk 0:04:03.6]} 13... Rd8 {[%clk 0:04:01.9]} 14.
Ne5 {[%clk 0:04:00.6]} 14... e6 {[%clk 0:03:50.6]} 15. Re1 {[%clk 0:03:50.9]}
15... c5 {[%clk 0:03:43.7]} 16. e4 {[%clk 0:03:46.8]} 16... Bh7 {[%clk
0:03:40.1]} 17. Nxf7 {[%clk 0:03:37.6]} 17... Kxf7 {[%clk 0:03:33.4]} 18. Qf3+
{[%clk 0:03:35.9]} 18... Ke7 {[%clk 0:03:25.4]} 19. d5 {[%clk 0:03:27.2]} 19...
Rf8 {[%clk 0:03:19.2]} 20. d6+ {[%clk 0:03:23.8]} 20... Kd7 {[%clk 0:03:12.8]}
21. Qe3 {[%clk 0:03:15]} 21... Bxc3 {[%clk 0:02:58.6]} 22. Qxc5 {[%clk
0:03:04.1]} 22... Bxe1 {[%clk 0:02:43.8]} 23. Rc1 {[%clk 0:02:55.5]} 23... Qb6
{[%clk 0:02:14.7]} 24. Bxe6+ {[%clk 0:02:49.4]} 24... Kxe6 {[%clk 0:02:03.8]}
25. Qd5+ {[%clk 0:02:47.7]} 25... Kd7 {[%clk 0:01:55.7]} 26. Rc7+ {[%clk
0:02:44.6]} 26... Kd8 {[%clk 0:01:48.9]} 27. Rc5 {[%clk 0:02:07.3]} 27... Bxe4
{[%clk 0:01:21]} 28. Qxe4 {[%clk 0:01:52.5]} 28... Qxc5 {[%clk 0:01:17]} 29.
Qe7+ {[%clk 0:01:51.2]} 29... Kc8 {[%clk 0:01:13]} 30. d7+ {[%clk 0:01:45]}
30... Nxd7 {[%clk 0:01:08.6]} 31. Qxc5+ {[%clk 0:01:29.3]} 31... Nxc5 {[%clk
0:01:07.1]} 0-1